[Event "Titled Tuesday Blitz November 15 Late 2022"]
[White "Joubert, Dantelle"]
[Black "Gardezi, Arsal"]
[WhiteFideId "14310813"]
[BlackFideId "30949521"]
[WhiteElo "1507"]
[BlackElo "1906"]
[Result "0-1"]
[Round "06"]
[TimeControl "180+1"]
[Date "2022.11.16"]
[WhiteClock "0:00:15"]
[BlackClock "0:00:18"]

1. d4 {[%clk 0:03:00]}  Nf6 {[%clk 0:02:53]} 2. c4 {[%clk 0:03:00]}  e6 {[%clk 0:02:54]} 3. Nf3 {[%clk 0:02:59]}  d5 {[%clk 0:02:54]} 4. Nc3 {[%clk 0:02:58]}  Be7 {[%clk 0:02:55]} 5. Bf4 {[%clk 0:02:58]}  O-O {[%clk 0:02:55]} 6. e3 {[%clk 0:02:58]}  c5 {[%clk 0:02:53]} 7. cxd5 {[%clk 0:02:46]}  exd5 {[%clk 0:02:52]} 8. dxc5 {[%clk 0:02:40]}  Bxc5 {[%clk 0:02:36]} 9. Be2 {[%clk 0:02:40]}  Be6 {[%clk 0:02:35]} 10. O-O {[%clk 0:02:35]}  Nc6 {[%clk 0:02:15]} 11. Ne5 {[%clk 0:02:27]}  Bd6 {[%clk 0:01:59]} 12. Nxc6 {[%clk 0:02:22]}  bxc6 {[%clk 0:02:00]} 13. Bxd6 {[%clk 0:02:19]}  Qxd6 {[%clk 0:02:01]} 14. Rc1 {[%clk 0:02:16]}  Rab8 {[%clk 0:01:58]} 15. Na4 {[%clk 0:02:08]}  Qe5 {[%clk 0:01:46]} 16. a3 {[%clk 0:01:42]}  Rfd8 {[%clk 0:01:34]} 17. Qc2 {[%clk 0:01:25]}  d4 {[%clk 0:01:28]} 18. exd4 {[%clk 0:01:22]}  Rxd4 {[%clk 0:01:25]} 19. Nc5 {[%clk 0:01:15]}  Bf5 {[%clk 0:01:21]} 20. Bd3 {[%clk 0:01:07]}  Bxd3 {[%clk 0:01:09]} 21. Nxd3 {[%clk 0:01:07]}  Qh5 {[%clk 0:01:03]} 22. Nb4 {[%clk 0:01:00]}  Ng4 {[%clk 0:00:55]} 23. h3 {[%clk 0:01:00]}  Ne5 {[%clk 0:00:45]} 24. f4 {[%clk 0:00:52]}  Nc4 {[%clk 0:00:26]} 25. Nxc6 {[%clk 0:00:50]}  Rxb2 {[%clk 0:00:27]} 26. Nxd4 {[%clk 0:00:40]}  Rxc2 {[%clk 0:00:24]} 27. Rxc2 {[%clk 0:00:40]}  Qc5 {[%clk 0:00:21]} 28. Rd1 {[%clk 0:00:29]}  h6 {[%clk 0:00:19]} 29. Kh2 {[%clk 0:00:24]}  Qd5 {[%clk 0:00:17]} 30. Rdc1 {[%clk 0:00:20]}  Ne3 {[%clk 0:00:17]} 31. Rd2 {[%clk 0:00:18]}  Qe4 {[%clk 0:00:17]} 32. Re1 {[%clk 0:00:18]}  Qxf4+ {[%clk 0:00:17]} 33. g3 {[%clk 0:00:18]}  Qg5 {[%clk 0:00:14]} 34. Rde2 {[%clk 0:00:17]}  Nd5 {[%clk 0:00:13]} 35. Nf3 {[%clk 0:00:17]}  Qf5 {[%clk 0:00:13]} 36. Kg2 {[%clk 0:00:17]}  Qd3 {[%clk 0:00:12]} 37. Rd2 {[%clk 0:00:16]}  Qc4 {[%clk 0:00:12]} 38. Red1 {[%clk 0:00:16]}  Ne3+ {[%clk 0:00:12]} 39. Kf2 {[%clk 0:00:16]}  Nxd1+ {[%clk 0:00:13]} 40. Rxd1 {[%clk 0:00:17]}  Qc2+ {[%clk 0:00:14]} 41. Rd2 {[%clk 0:00:17]}  Qc5+ {[%clk 0:00:14]} 42. Ke2 {[%clk 0:00:16]}  Qxa3 {[%clk 0:00:15]} 43. Rd8+ {[%clk 0:00:15]}  Kh7 {[%clk 0:00:15]} 44. Rd2 {[%clk 0:00:15]}  Qa6+ {[%clk 0:00:15]} 45. Kf2 {[%clk 0:00:15]}  Qb6+ {[%clk 0:00:15]} 46. Nd4 {[%clk 0:00:15]}  a5 {[%clk 0:00:16]} 47. Kf3 {[%clk 0:00:16]}  a4 {[%clk 0:00:16]} 48. Rd3 {[%clk 0:00:15]}  Qf6+ {[%clk 0:00:17]} 49. Kg2 {[%clk 0:00:15]}  Qg6 {[%clk 0:00:18]} 50. Nf3 {[%clk 0:00:15]}  Qxd3 {[%clk 0:00:18]} 0-1


[Site "https://www.chess.com"]

[Event "Titled Tuesday Blitz November 15 Late 2022"]
[White "Kamsky, Gata"]
[Black "Al-Tarboush, Ward"]
[WhiteFideId "2000024"]
[BlackFideId "7601450"]
[WhiteElo "2666"]
[BlackElo "2273"]
[Result "1-0"]
[Round "06"]
[TimeControl "180+1"]
[Date "2022.11.16"]
[WhiteClock "0:00:17"]
[BlackClock "0:00:03"]

1. e4 {[%clk 0:03:00]}  e6 {[%clk 0:02:47]} 2. Nf3 {[%clk 0:02:59]}  d5 {[%clk 0:02:47]} 3. Nc3 {[%clk 0:02:57]}  Nf6 {[%clk 0:02:45]} 4. e5 {[%clk 0:02:56]}  Nfd7 {[%clk 0:02:45]} 5. d4 {[%clk 0:02:54]}  c5 {[%clk 0:02:45]} 6. Ne2 {[%clk 0:02:54]}  cxd4 {[%clk 0:02:44]} 7. Nexd4 {[%clk 0:02:53]}  Nc6 {[%clk 0:02:44]} 8. Bb5 {[%clk 0:02:50]}  Qb6 {[%clk 0:02:35]} 9. O-O {[%clk 0:02:43]}  Bc5 {[%clk 0:02:35]} 10. c3 {[%clk 0:02:27]}  O-O {[%clk 0:02:35]} 11. Bxc6 {[%clk 0:02:19]}  bxc6 {[%clk 0:02:31]} 12. b4 {[%clk 0:02:18]}  Be7 {[%clk 0:02:30]} 13. Be3 {[%clk 0:02:15]}  c5 {[%clk 0:02:27]} 14. Nb3 {[%clk 0:02:13]}  Ba6 {[%clk 0:02:25]} 15. Re1 {[%clk 0:02:12]}  Rac8 {[%clk 0:02:22]} 16. Qd2 {[%clk 0:01:42]}  Qc7 {[%clk 0:02:19]} 17. Bg5 {[%clk 0:01:42]}  Bxg5 {[%clk 0:02:17]} 18. Qxg5 {[%clk 0:01:41]}  cxb4 {[%clk 0:02:16]} 19. cxb4 {[%clk 0:01:40]}  h6 {[%clk 0:02:16]} 20. Qg3 {[%clk 0:01:39]}  Qc3 {[%clk 0:02:14]} 21. Qh4 {[%clk 0:01:11]}  Rc4 {[%clk 0:02:11]} 22. Qe7 {[%clk 0:01:11]}  Bc8 {[%clk 0:02:02]} 23. b5 {[%clk 0:01:08]}  Qb4 {[%clk 0:02:01]} 24. Qxb4 {[%clk 0:01:07]}  Rxb4 {[%clk 0:02:02]} 25. Nbd4 {[%clk 0:01:07]}  Nc5 {[%clk 0:02:00]} 26. Reb1 {[%clk 0:01:04]}  Ra4 {[%clk 0:01:52]} 27. Rc1 {[%clk 0:01:01]}  Ne4 {[%clk 0:01:51]} 28. Rc7 {[%clk 0:00:59]}  g5 {[%clk 0:01:41]} 29. h3 {[%clk 0:00:58]}  h5 {[%clk 0:01:24]} 30. Nc6 {[%clk 0:00:58]}  g4 {[%clk 0:00:58]} 31. hxg4 {[%clk 0:00:57]}  hxg4 {[%clk 0:00:59]} 32. Nh2 {[%clk 0:00:57]}  g3 {[%clk 0:00:53]} 33. fxg3 {[%clk 0:00:56]}  Rc4 {[%clk 0:00:52]} 34. Rxa7 {[%clk 0:00:49]}  Nxg3 {[%clk 0:00:50]} 35. Nf3 {[%clk 0:00:48]}  Ne2+ {[%clk 0:00:48]} 36. Kf2 {[%clk 0:00:48]}  Nf4 {[%clk 0:00:48]} 37. Nfd4 {[%clk 0:00:46]}  Nd3+ {[%clk 0:00:46]} 38. Ke3 {[%clk 0:00:46]}  Nc5 {[%clk 0:00:41]} 39. a4 {[%clk 0:00:42]}  Rc3+ {[%clk 0:00:40]} 40. Ke2 {[%clk 0:00:40]}  Bd7 {[%clk 0:00:27]} 41. Rf1 {[%clk 0:00:36]}  Bxc6 {[%clk 0:00:27]} 42. Nxc6 {[%clk 0:00:34]}  Ne4 {[%clk 0:00:26]} 43. Rf3 {[%clk 0:00:27]}  Rc2+ {[%clk 0:00:25]} 44. Kd3 {[%clk 0:00:25]}  Rc3+ {[%clk 0:00:22]} 45. Kd4 {[%clk 0:00:24]}  Rc4+ {[%clk 0:00:22]} 46. Ke3 {[%clk 0:00:24]}  Nc5 {[%clk 0:00:11]} 47. Rf4 {[%clk 0:00:22]}  Rc3+ {[%clk 0:00:10]} 48. Kd2 {[%clk 0:00:21]}  Ra3 {[%clk 0:00:10]} 49. Rg4+ {[%clk 0:00:21]}  Kh7 {[%clk 0:00:09]} 50. a5 {[%clk 0:00:21]}  Kh6 {[%clk 0:00:09]} 51. a6 {[%clk 0:00:20]}  f6 {[%clk 0:00:09]} 52. Rh4+ {[%clk 0:00:19]}  Kg5 {[%clk 0:00:09]} 53. Rh3 {[%clk 0:00:17]}  fxe5 {[%clk 0:00:09]} 54. Rxa3 {[%clk 0:00:16]}  Rf2+ {[%clk 0:00:07]} 55. Kc3 {[%clk 0:00:16]}  Ne4+ {[%clk 0:00:03]} 56. Kb4 {[%clk 0:00:16]}  Rb2+ {[%clk 0:00:03]} 57. Rb3 {[%clk 0:00:17]} 1-0


[Site "https://www.chess.com"]

[Event "Titled Tuesday Blitz November 15 Late 2022"]
[White "Khandelwal, Ankush"]
[Black "Goroshkov, Maksym"]
[WhiteFideId "413470"]
[BlackFideId "14142716"]
[WhiteElo "2271"]
[BlackElo "2257"]
[Result "0-1"]
[Round "06"]
[TimeControl "180+1"]
[Date "2022.11.16"]
[WhiteClock "0:00:33"]
[BlackClock "0:01:35"]

1. e4 {[%clk 0:03:00]}  e5 {[%clk 0:03:00]} 2. Nf3 {[%clk 0:03:01]}  d6 {[%clk 0:03:00]} 3. d4 {[%clk 0:03:00]}  Bg4 {[%clk 0:03:01]} 4. dxe5 {[%clk 0:02:58]}  Nd7 {[%clk 0:03:02]} 5. exd6 {[%clk 0:02:56]}  Bxd6 {[%clk 0:03:03]} 6. Be2 {[%clk 0:02:55]}  Ngf6 {[%clk 0:03:03]} 7. Nc3 {[%clk 0:02:55]}  Qe7 {[%clk 0:03:03]} 8. O-O {[%clk 0:02:55]}  O-O-O {[%clk 0:03:03]} 9. h3 {[%clk 0:02:45]}  Bh5 {[%clk 0:03:03]} 10. Nd4 {[%clk 0:02:39]}  Bg6 {[%clk 0:02:55]} 11. Ndb5 {[%clk 0:02:29]}  Nc5 {[%clk 0:02:45]} 12. Nxd6+ {[%clk 0:02:26]}  Rxd6 {[%clk 0:02:44]} 13. Qe1 {[%clk 0:02:24]}  Ncxe4 {[%clk 0:02:42]} 14. Nxe4 {[%clk 0:02:23]}  Qxe4 {[%clk 0:02:35]} 15. c3 {[%clk 0:02:18]}  Re8 {[%clk 0:02:34]} 16. Be3 {[%clk 0:02:18]}  Nd5 {[%clk 0:02:32]} 17. Bf3 {[%clk 0:02:17]}  Qc4 {[%clk 0:02:17]} 18. Rd1 {[%clk 0:02:02]}  Bd3 {[%clk 0:02:06]} 19. b3 {[%clk 0:01:53]}  Qa6 {[%clk 0:02:05]} 20. c4 {[%clk 0:01:34]}  Nxe3 {[%clk 0:02:02]} 21. Bg4+ {[%clk 0:01:13]}  Kb8 {[%clk 0:01:44]} 22. Rxd3 {[%clk 0:00:33]}  Rxd3 {[%clk 0:01:40]} 23. Bf5 {[%clk 0:00:33]}  Rd1 {[%clk 0:01:35]} 0-1


[Site "https://www.chess.com"]

[Event "Titled Tuesday Blitz November 15 Late 2022"]
[White "Kollars, Dmitrij"]
[Black "Baskakov, Egor"]
[WhiteFideId "12909572"]
[BlackFideId "24197866"]
[WhiteElo "2584"]
[BlackElo "2211"]
[Result "1-0"]
[Round "06"]
[TimeControl "180+1"]
[Date "2022.11.15"]
[WhiteClock "0:00:08"]
[BlackClock "0:00:13"]

1. Nf3 {[%clk 0:03:00]}  Nf6 {[%clk 0:02:59]} 2. d4 {[%clk 0:02:59]}  e6 {[%clk 0:03:00]} 3. c4 {[%clk 0:02:59]}  d5 {[%clk 0:03:00]} 4. g3 {[%clk 0:02:59]}  Ne4 {[%clk 0:03:01]} 5. Bg2 {[%clk 0:02:59]}  Be7 {[%clk 0:03:01]} 6. O-O {[%clk 0:02:59]}  O-O {[%clk 0:03:01]} 7. Nc3 {[%clk 0:02:57]}  f5 {[%clk 0:03:01]} 8. Bf4 {[%clk 0:02:56]}  c6 {[%clk 0:03:00]} 9. Qc2 {[%clk 0:02:53]}  g5 {[%clk 0:02:59]} 10. Bxb8 {[%clk 0:02:27]}  Rxb8 {[%clk 0:03:00]} 11. Ne5 {[%clk 0:02:26]}  Bd7 {[%clk 0:02:59]} 12. e3 {[%clk 0:02:23]}  Be8 {[%clk 0:02:57]} 13. f3 {[%clk 0:02:19]}  Nxc3 {[%clk 0:02:57]} 14. bxc3 {[%clk 0:02:20]}  Bd6 {[%clk 0:02:57]} 15. f4 {[%clk 0:02:19]}  Bxe5 {[%clk 0:02:57]} 16. dxe5 {[%clk 0:02:05]}  dxc4 {[%clk 0:02:54]} 17. Rfd1 {[%clk 0:02:03]}  Qe7 {[%clk 0:02:53]} 18. Rd6 {[%clk 0:02:01]}  Bh5 {[%clk 0:02:46]} 19. Qa4 {[%clk 0:01:56]}  gxf4 {[%clk 0:02:40]} 20. exf4 {[%clk 0:01:55]}  b5 {[%clk 0:02:37]} 21. Qb4 {[%clk 0:01:55]}  c5 {[%clk 0:02:25]} 22. Qxc5 {[%clk 0:01:54]}  Rfc8 {[%clk 0:02:26]} 23. Qd4 {[%clk 0:01:51]}  Bf7 {[%clk 0:02:15]} 24. Rb1 {[%clk 0:01:43]}  a5 {[%clk 0:02:14]} 25. a3 {[%clk 0:01:43]}  b4 {[%clk 0:01:54]} 26. axb4 {[%clk 0:01:35]}  axb4 {[%clk 0:01:55]} 27. cxb4 {[%clk 0:01:36]}  c3 {[%clk 0:01:55]} 28. Rc1 {[%clk 0:01:32]}  c2 {[%clk 0:01:50]} 29. Bc6 {[%clk 0:01:15]}  Be8 {[%clk 0:01:28]} 30. Rxc2 {[%clk 0:01:07]}  Bxc6 {[%clk 0:01:26]} 31. Rcxc6 {[%clk 0:01:07]}  Rxc6 {[%clk 0:01:26]} 32. Rxc6 {[%clk 0:01:08]}  Rxb4 {[%clk 0:01:26]} 33. Qc3 {[%clk 0:00:49]}  Rb1+ {[%clk 0:01:18]} 34. Kg2 {[%clk 0:00:46]}  Rb8 {[%clk 0:01:08]} 35. Rc7 {[%clk 0:00:33]}  Qe8 {[%clk 0:01:03]} 36. Qa3 {[%clk 0:00:24]}  Qb5 {[%clk 0:00:47]} 37. Qa2 {[%clk 0:00:19]}  Rb6 {[%clk 0:00:36]} 38. Qa8+ {[%clk 0:00:16]}  Rb8 {[%clk 0:00:35]} 39. Qa2 {[%clk 0:00:17]}  Rb6 {[%clk 0:00:34]} 40. Kh3 {[%clk 0:00:16]}  h6 {[%clk 0:00:20]} 41. Kh4 {[%clk 0:00:13]}  Qe8 {[%clk 0:00:18]} 42. Qa7 {[%clk 0:00:10]}  Qd8+ {[%clk 0:00:17]} 43. Kh3 {[%clk 0:00:09]}  Qe8 {[%clk 0:00:13]} 44. Qxb6 {[%clk 0:00:06]}  Qh5+ {[%clk 0:00:12]} 45. Kg2 {[%clk 0:00:07]}  Qe2+ {[%clk 0:00:13]} 46. Qf2 {[%clk 0:00:07]}  Qe4+ {[%clk 0:00:13]} 47. Qf3 {[%clk 0:00:08]} 1-0


[Site "https://www.chess.com"]

[Event "Titled Tuesday Blitz November 15 Late 2022"]
[White "Kopylov, Alexander A."]
[Black "Svane, Rasmus"]
[WhiteFideId "4164857"]
[BlackFideId "4657101"]
[WhiteElo "2436"]
[BlackElo "2674"]
[Result "1/2-1/2"]
[Round "06"]
[TimeControl "180+1"]
[Date "2022.11.15"]
[WhiteClock "0:00:13"]
[BlackClock "0:00:04"]

1. e4 {[%clk 0:03:00]}  c6 {[%clk 0:03:00]} 2. Nc3 {[%clk 0:02:58]}  d5 {[%clk 0:03:01]} 3. Qe2 {[%clk 0:02:59]}  d4 {[%clk 0:02:57]} 4. Nd1 {[%clk 0:02:59]}  c5 {[%clk 0:02:56]} 5. f4 {[%clk 0:02:58]}  e5 {[%clk 0:02:54]} 6. fxe5 {[%clk 0:02:54]}  Nc6 {[%clk 0:02:54]} 7. Nf3 {[%clk 0:02:54]}  Qc7 {[%clk 0:02:54]} 8. d3 {[%clk 0:02:33]}  Nge7 {[%clk 0:02:55]} 9. Bf4 {[%clk 0:02:31]}  Ng6 {[%clk 0:02:54]} 10. Bg3 {[%clk 0:02:31]}  Ngxe5 {[%clk 0:02:53]} 11. Nxe5 {[%clk 0:02:28]}  Nxe5 {[%clk 0:02:53]} 12. Qh5 {[%clk 0:02:20]}  Bd6 {[%clk 0:02:53]} 13. Be2 {[%clk 0:02:20]}  O-O {[%clk 0:02:46]} 14. O-O {[%clk 0:02:20]}  Bd7 {[%clk 0:02:44]} 15. Nf2 {[%clk 0:02:12]}  Rae8 {[%clk 0:02:43]} 16. Ng4 {[%clk 0:01:47]}  Ng6 {[%clk 0:02:15]} 17. Bxd6 {[%clk 0:01:28]}  Qxd6 {[%clk 0:02:16]} 18. Rf2 {[%clk 0:01:07]}  f6 {[%clk 0:02:09]} 19. Raf1 {[%clk 0:01:05]}  b6 {[%clk 0:02:03]} 20. h4 {[%clk 0:00:54]}  a5 {[%clk 0:01:57]} 21. Nh2 {[%clk 0:00:54]}  Ne5 {[%clk 0:01:54]} 22. g4 {[%clk 0:00:42]}  Rf7 {[%clk 0:01:38]} 23. g5 {[%clk 0:00:37]}  Ref8 {[%clk 0:01:38]} 24. gxf6 {[%clk 0:00:30]}  Rxf6 {[%clk 0:01:39]} 25. Rxf6 {[%clk 0:00:22]}  Rxf6 {[%clk 0:01:40]} 26. Rxf6 {[%clk 0:00:20]}  Qxf6 {[%clk 0:01:41]} 27. Qg5 {[%clk 0:00:21]}  Qxg5+ {[%clk 0:01:37]} 28. hxg5 {[%clk 0:00:21]}  Kf7 {[%clk 0:01:29]} 29. Bh5+ {[%clk 0:00:21]}  Ke7 {[%clk 0:01:22]} 30. Kf2 {[%clk 0:00:22]}  Be6 {[%clk 0:01:18]} 31. b3 {[%clk 0:00:20]}  Nc6 {[%clk 0:01:11]} 32. a3 {[%clk 0:00:19]}  Ne5 {[%clk 0:01:11]} 33. Kg3 {[%clk 0:00:19]}  a4 {[%clk 0:01:09]} 34. bxa4 {[%clk 0:00:19]}  Bd7 {[%clk 0:01:09]} 35. Kf4 {[%clk 0:00:19]}  Kd6 {[%clk 0:00:56]} 36. Nf3 {[%clk 0:00:19]}  Nxf3 {[%clk 0:00:55]} 37. Bxf3 {[%clk 0:00:20]}  Bxa4 {[%clk 0:00:56]} 38. e5+ {[%clk 0:00:21]}  Ke6 {[%clk 0:00:53]} 39. Bg4+ {[%clk 0:00:20]}  Ke7 {[%clk 0:00:53]} 40. Bd1 {[%clk 0:00:21]}  Bd7 {[%clk 0:00:45]} 41. Ke4 {[%clk 0:00:21]}  Be6 {[%clk 0:00:40]} 42. Kf4 {[%clk 0:00:20]}  Kd7 {[%clk 0:00:39]} 43. Ke4 {[%clk 0:00:20]}  Kc6 {[%clk 0:00:38]} 44. Kf4 {[%clk 0:00:20]}  Kc7 {[%clk 0:00:36]} 45. Bf3 {[%clk 0:00:20]}  Kd7 {[%clk 0:00:35]} 46. Bd1 {[%clk 0:00:19]}  Ke7 {[%clk 0:00:35]} 47. Bf3 {[%clk 0:00:20]}  Kf7 {[%clk 0:00:31]} 48. Bh5+ {[%clk 0:00:19]}  Ke7 {[%clk 0:00:30]} 49. Bd1 {[%clk 0:00:20]}  h6 {[%clk 0:00:30]} 50. gxh6 {[%clk 0:00:19]}  gxh6 {[%clk 0:00:31]} 51. Ke4 {[%clk 0:00:18]}  Bc8 {[%clk 0:00:28]} 52. Kf4 {[%clk 0:00:17]}  Bd7 {[%clk 0:00:28]} 53. Ke4 {[%clk 0:00:16]}  Be6 {[%clk 0:00:20]} 54. Kf4 {[%clk 0:00:16]}  Kf7 {[%clk 0:00:18]} 55. Bh5+ {[%clk 0:00:16]}  Kg7 {[%clk 0:00:19]} 56. Bd1 {[%clk 0:00:16]}  Kg6 {[%clk 0:00:19]} 57. Bf3 {[%clk 0:00:15]}  h5 {[%clk 0:00:19]} 58. Be4+ {[%clk 0:00:15]}  Kh6 {[%clk 0:00:20]} 59. Bf5 {[%clk 0:00:12]}  Bxf5 {[%clk 0:00:10]} 60. Kxf5 {[%clk 0:00:13]}  h4 {[%clk 0:00:11]} 61. Kf6 {[%clk 0:00:11]}  h3 {[%clk 0:00:10]} 62. e6 {[%clk 0:00:11]}  h2 {[%clk 0:00:11]} 63. e7 {[%clk 0:00:12]}  h1=Q {[%clk 0:00:11]} 64. e8=Q {[%clk 0:00:13]}  Qf3+ {[%clk 0:00:08]} 65. Ke7 {[%clk 0:00:13]}  Qe2+ {[%clk 0:00:08]} 66. Kd7 {[%clk 0:00:13]}  Qxc2 {[%clk 0:00:08]} 67. Qe6+ {[%clk 0:00:10]}  Kg5 {[%clk 0:00:08]} 68. Qe5+ {[%clk 0:00:10]}  Kg4 {[%clk 0:00:08]} 69. Qe4+ {[%clk 0:00:10]}  Kg3 {[%clk 0:00:08]} 70. Kc6 {[%clk 0:00:11]}  Qb3 {[%clk 0:00:07]} 71. a4 {[%clk 0:00:09]}  Kf2 {[%clk 0:00:06]} 72. a5 {[%clk 0:00:09]}  bxa5 {[%clk 0:00:06]} 73. Kxc5 {[%clk 0:00:10]}  Qb4+ {[%clk 0:00:05]} 74. Kd5 {[%clk 0:00:10]}  a4 {[%clk 0:00:06]} 75. Qxd4+ {[%clk 0:00:11]}  Qxd4+ {[%clk 0:00:03]} 76. Kxd4 {[%clk 0:00:11]}  a3 {[%clk 0:00:03]} 77. Kc3 {[%clk 0:00:12]}  Ke3 {[%clk 0:00:04]} 78. Kb3 {[%clk 0:00:12]}  Kxd3 {[%clk 0:00:04]} 79. Kxa3 {[%clk 0:00:13]} 1/2-1/2


[Site "https://www.chess.com"]

[Event "Titled Tuesday Blitz November 15 Late 2022"]
[White "Koutlas, Nikolaos"]
[Black "Rasulov, Vugar"]
[WhiteFideId "25827138"]
[BlackFideId "13402390"]
[WhiteElo "2167"]
[BlackElo "2509"]
[Result "1/2-1/2"]
[Round "06"]
[TimeControl "180+1"]
[Date "2022.11.16"]
[WhiteClock "0:00:03"]
[BlackClock "0:00:13"]

1. e4 {[%clk 0:03:00]}  e5 {[%clk 0:03:00]} 2. Nf3 {[%clk 0:02:59]}  Nc6 {[%clk 0:03:01]} 3. Bc4 {[%clk 0:03:00]}  Nf6 {[%clk 0:03:01]} 4. d3 {[%clk 0:02:59]}  Bc5 {[%clk 0:03:01]} 5. O-O {[%clk 0:02:59]}  O-O {[%clk 0:03:01]} 6. c3 {[%clk 0:02:59]}  d5 {[%clk 0:03:01]} 7. exd5 {[%clk 0:03:00]}  Nxd5 {[%clk 0:03:02]} 8. Re1 {[%clk 0:03:00]}  Bg4 {[%clk 0:03:02]} 9. Nbd2 {[%clk 0:02:56]}  Nb6 {[%clk 0:03:03]} 10. h3 {[%clk 0:02:57]}  Nxc4 {[%clk 0:02:57]} 11. Nxc4 {[%clk 0:02:55]}  Bxf3 {[%clk 0:02:48]} 12. Qxf3 {[%clk 0:02:54]}  Re8 {[%clk 0:02:49]} 13. b4 {[%clk 0:02:49]}  Bb6 {[%clk 0:02:30]} 14. a4 {[%clk 0:02:43]}  a6 {[%clk 0:02:30]} 15. Ra2 {[%clk 0:02:22]}  Qd7 {[%clk 0:02:25]} 16. Rae2 {[%clk 0:02:12]}  f6 {[%clk 0:02:25]} 17. Rd1 {[%clk 0:01:46]}  Rad8 {[%clk 0:02:23]} 18. Qg3 {[%clk 0:01:34]}  Ne7 {[%clk 0:02:11]} 19. a5 {[%clk 0:01:21]}  Ba7 {[%clk 0:02:11]} 20. Re4 {[%clk 0:01:18]}  Nd5 {[%clk 0:02:09]} 21. Bd2 {[%clk 0:01:17]}  c5 {[%clk 0:02:02]} 22. bxc5 {[%clk 0:01:04]}  Bxc5 {[%clk 0:02:03]} 23. Rde1 {[%clk 0:01:01]}  Bf8 {[%clk 0:02:03]} 24. Qf3 {[%clk 0:00:56]}  Ne7 {[%clk 0:01:53]} 25. d4 {[%clk 0:00:51]}  Nc6 {[%clk 0:01:34]} 26. dxe5 {[%clk 0:00:45]}  Nxe5 {[%clk 0:01:34]} 27. Nxe5 {[%clk 0:00:31]}  Qxd2 {[%clk 0:01:34]} 28. R4e2 {[%clk 0:00:20]}  Rxe5 {[%clk 0:01:28]} 29. Rxd2 {[%clk 0:00:20]}  Rxe1+ {[%clk 0:01:29]} 30. Kh2 {[%clk 0:00:21]}  Rxd2 {[%clk 0:01:30]} 31. h4 {[%clk 0:00:18]}  Ree2 {[%clk 0:01:28]} 32. Qxb7 {[%clk 0:00:17]}  Rxf2 {[%clk 0:01:29]} 33. Qxa6 {[%clk 0:00:17]}  Rxg2+ {[%clk 0:01:28]} 34. Kh3 {[%clk 0:00:18]}  h5 {[%clk 0:01:25]} 35. Qb5 {[%clk 0:00:16]}  Rh2+ {[%clk 0:01:15]} 36. Kg3 {[%clk 0:00:16]}  Bd6+ {[%clk 0:01:15]} 37. Kf3 {[%clk 0:00:16]}  Rh3+ {[%clk 0:01:10]} 38. Ke4 {[%clk 0:00:16]}  Rxh4+ {[%clk 0:01:10]} 39. Kf5 {[%clk 0:00:17]}  Kh7 {[%clk 0:01:10]} 40. Ke6 {[%clk 0:00:15]}  Be5 {[%clk 0:01:07]} 41. Kf7 {[%clk 0:00:13]}  Rh3 {[%clk 0:00:55]} 42. Qe8 {[%clk 0:00:11]}  Kh6 {[%clk 0:00:51]} 43. Qh8+ {[%clk 0:00:05]}  Kg5 {[%clk 0:00:51]} 44. Qxg7+ {[%clk 0:00:05]}  Kf4 {[%clk 0:00:52]} 45. Qh6+ {[%clk 0:00:05]}  Kf5 {[%clk 0:00:50]} 46. Qxd2 {[%clk 0:00:06]}  Rxc3 {[%clk 0:00:50]} 47. Qf2+ {[%clk 0:00:05]}  Kg4 {[%clk 0:00:50]} 48. a6 {[%clk 0:00:04]}  Rc7+ {[%clk 0:00:46]} 49. Kg6 {[%clk 0:00:05]}  h4 {[%clk 0:00:40]} 50. a7 {[%clk 0:00:03]}  Rxa7 {[%clk 0:00:38]} 51. Qxa7 {[%clk 0:00:03]}  h3 {[%clk 0:00:39]} 52. Qg1+ {[%clk 0:00:03]}  Bg3 {[%clk 0:00:38]} 53. Kxf6 {[%clk 0:00:03]}  h2 {[%clk 0:00:34]} 54. Qh1 {[%clk 0:00:04]}  Kf4 {[%clk 0:00:34]} 55. Qg2 {[%clk 0:00:03]}  Kg4 {[%clk 0:00:34]} 56. Ke6 {[%clk 0:00:03]}  Kf4 {[%clk 0:00:34]} 57. Kd5 {[%clk 0:00:04]}  Kf5 {[%clk 0:00:31]} 58. Kc4 {[%clk 0:00:04]}  Bf4 {[%clk 0:00:28]} 59. Kd3 {[%clk 0:00:05]}  Be5 {[%clk 0:00:27]} 60. Ke2 {[%clk 0:00:06]}  Bf4 {[%clk 0:00:28]} 61. Kf3 {[%clk 0:00:07]}  Be5 {[%clk 0:00:27]} 62. Qh1 {[%clk 0:00:07]}  Kg5 {[%clk 0:00:27]} 63. Qc1+ {[%clk 0:00:07]}  Kf5 {[%clk 0:00:26]} 64. Qc2+ {[%clk 0:00:07]}  Kg5 {[%clk 0:00:26]} 65. Kg2 {[%clk 0:00:07]}  Bf4 {[%clk 0:00:26]} 66. Qe4 {[%clk 0:00:08]}  Kg4 {[%clk 0:00:26]} 67. Qg6+ {[%clk 0:00:07]}  Kh4 {[%clk 0:00:26]} 68. Qh7+ {[%clk 0:00:05]}  Kg5 {[%clk 0:00:26]} 69. Qh3 {[%clk 0:00:05]}  Be5 {[%clk 0:00:25]} 70. Kf3 {[%clk 0:00:05]}  Kf6 {[%clk 0:00:25]} 71. Ke4 {[%clk 0:00:05]}  Bb8 {[%clk 0:00:24]} 72. Kf3 {[%clk 0:00:04]}  Be5 {[%clk 0:00:24]} 73. Qh6+ {[%clk 0:00:04]}  Kf5 {[%clk 0:00:24]} 74. Kg2 {[%clk 0:00:04]}  Ke4 {[%clk 0:00:24]} 75. Qh5 {[%clk 0:00:04]}  Bf4 {[%clk 0:00:23]} 76. Qg6+ {[%clk 0:00:04]}  Ke3 {[%clk 0:00:21]} 77. Qh7 {[%clk 0:00:05]}  Be5 {[%clk 0:00:21]} 78. Qe7 {[%clk 0:00:04]}  Ke4 {[%clk 0:00:21]} 79. Qb7+ {[%clk 0:00:04]}  Ke3 {[%clk 0:00:21]} 80. Kh3 {[%clk 0:00:04]}  Kf2 {[%clk 0:00:19]} 81. Qe4 {[%clk 0:00:02]}  Bb8 {[%clk 0:00:17]} 82. Qf5+ {[%clk 0:00:02]}  Kg1 {[%clk 0:00:16]} 83. Qg4+ {[%clk 0:00:03]}  Kf2 {[%clk 0:00:17]} 84. Qg2+ {[%clk 0:00:04]}  Ke3 {[%clk 0:00:17]} 85. Kg4 {[%clk 0:00:04]}  Bd6 {[%clk 0:00:17]} 86. Qf3+ {[%clk 0:00:05]}  Kd4 {[%clk 0:00:17]} 87. Kf5 {[%clk 0:00:06]}  Bc7 {[%clk 0:00:15]} 88. Qe4+ {[%clk 0:00:06]}  Kc3 {[%clk 0:00:15]} 89. Qc6+ {[%clk 0:00:07]}  Kd2 {[%clk 0:00:15]} 90. Qg2+ {[%clk 0:00:06]}  Ke3 {[%clk 0:00:14]} 91. Ke6 {[%clk 0:00:06]}  Bf4 {[%clk 0:00:14]} 92. Kf5 {[%clk 0:00:06]}  Bc7 {[%clk 0:00:14]} 93. Qh3+ {[%clk 0:00:06]}  Kf2 {[%clk 0:00:14]} 94. Kg4 {[%clk 0:00:06]}  Be5 {[%clk 0:00:09]} 95. Qf3+ {[%clk 0:00:06]}  Ke1 {[%clk 0:00:10]} 96. Qe3+ {[%clk 0:00:05]}  Kf1 {[%clk 0:00:10]} 97. Qc1+ {[%clk 0:00:04]}  Kg2 {[%clk 0:00:10]} 98. Qd2+ {[%clk 0:00:04]}  Kf1 {[%clk 0:00:11]} 99. Qd1+ {[%clk 0:00:03]}  Kg2 {[%clk 0:00:11]} 100. Qf3+ {[%clk 0:00:02]}  Kg1 {[%clk 0:00:12]} 101. Qe3+ {[%clk 0:00:03]}  Kg2 {[%clk 0:00:12]} 102. Qe2+ {[%clk 0:00:03]}  Kg1 {[%clk 0:00:13]} 103. Qe1+ {[%clk 0:00:03]}  Kg2 {[%clk 0:00:13]} 1/2-1/2


[Site "https://www.chess.com"]